[Event "Cellavision Cup 2018"]
[Site "Lund"]
[Date "2018.08.03"]
[Round "1"]
[White "Hansen, Sune Berg"]
[Black "Dahlstrom, Rickard"]
[Result "1-0"]
[ECO "A11"]
[WhiteElo "2589"]
[BlackElo "1990"]
[Annotator "ChessBase"]
[PlyCount "71"]
[EventDate "2018.08.03"]
[EventType "swiss"]
[EventCountry "SWE"]
[SourceTitle "playchess.com"]
[Source "ChessBase"]
[SourceQuality "1"]
[TimeControl "900+5"]

1. c4 {[%emt 0:00:00]} c6 {[%emt 0:00:00]} 2. Nf3 {[%emt 0:00:08]} d5 {[%emt 0:00:00]} 3. e3 {[%emt 0:00:01]} Nf6 {[%emt 0:00:04]} 4. Nc3 {[%emt 0:00:01]} a6 {[%emt 0:00:06]} 5. Qc2 {[%emt 0:00:11]} g6 {[%emt 0:00:30]} 6. d4 {[%emt 0:00:06]} Bg7 {[%emt 0:00:06]} 7. Bd3 {[%emt 0:00:11]} O-O {[%emt 0:00:06]} 8. O-O {[%emt 0:00:04]} Nbd7 {[%emt 0:00:20]} 9. Rd1 {[%emt 0:00:11]} Qc7 {[%emt 0:00:47]} 10. Bd2 {[%emt 0:00:48]} e5 {[%emt 0:01:13]} 11. cxd5 {[%emt 0:00:03]} cxd5 {[%emt 0:00:38]} 12. Rac1 {[%emt 0:00:08]} Qd6 {[%emt 0:01:13]} 13. dxe5 {[%emt 0:00:08]} Nxe5 {[%emt 0:00:01]} 14. Nxe5 {[%emt 0:00:17]} Qxe5 {[%emt 0:00:02]} 15. h3 {[%emt 0:00:03]} Be6 {[%emt 0:00:23]} 16. Ne2 {[%emt 0:00:10]} Rac8 {[%emt 0:00:48]} 17. Bc3 {[%emt 0:00:10]} Qg5 {[%emt 0:00:47]} 18. Nf4 {[%emt 0:00:11]} Bd7 {[%emt 0:01:10]} 19. Qb3 {[%emt 0:00:27]} Bc6 {[%emt 0:00:06]} 20. Bd4 {[%emt 0:00:16]} Ne4 {[%emt 0:00:31]} 21. Qb4 {[%emt 0:01:18]} Rfd8 {[%emt 0:00:58]} 22. Bxg7 {[%emt 0:00:39]} Kxg7 {[%emt 0:00:01]} 23. Qd4+ {[%emt 0:00:02]} Kg8 {[%emt 0:01:04]} 24. Be2 {[%emt 0:00:24]} Qe7 {[%emt 0:00:27]} 25. Bg4 {[%emt 0:00:22]} Rb8 {[%emt 0:00:19]} 26. Rc2 {[%emt 0:00:26]} Rd6 {[%emt 0:01:11]} 27. Qb4 {[%emt 0:01:16]} Rbd8 {[%emt 0:00:05]} 28. Ne2 {[%emt 0:00:16]} h5 {[%emt 0:00:29]} 29. Bf3 {[%emt 0:00:06]} Ng5 {[%emt 0:00:01]} 30. Nd4 {[%emt 0:00:28]} Nxf3+ {[%emt 0:00:13]} 31. Nxf3 {[%emt 0:00:02]} b5 {[%emt 0:00:28]} 32. Qd4 {[%emt 0:00:24]} Bb7 {[%emt 0:00:22]} 33. Rdc1 {[%emt 0:00:14]} Re6 {[%emt 0:00:23]} 34. Rc7 {[%emt 0:00:16]} Rd7 {[%emt 0:00:04]} 35. Rxb7 {[%emt 0:00:18]} Rxb7 {[%emt 0:00:32]} 36. Rc8+ 1-0

[Event "Cellavision Cup 2018"]
[Site "Lund"]
[Date "2018.08.03"]
[Round "1"]
[White "Hector, Jonny"]
[Black "Larsson, Per-Olov"]
[Result "1-0"]
[ECO "B94"]
[WhiteElo "2491"]
[BlackElo "1959"]
[Annotator "ChessBase"]
[PlyCount "77"]
[EventDate "2018.08.03"]
[EventType "swiss"]
[EventCountry "SWE"]
[SourceTitle "playchess.com"]
[Source "ChessBase"]
[SourceQuality "1"]
[TimeControl "900+5"]

1. e4 {[%emt 0:00:03]} c5 {[%emt 0:00:00]} 2. Nf3 {[%emt 0:00:02]} d6 {[%emt 0:00:03]} 3. d4 {[%emt 0:00:02]} cxd4 {[%emt 0:00:04]} 4. Nxd4 {[%emt 0:00:02]} Nf6 {[%emt 0:00:02]} 5. Nc3 {[%emt 0:00:03]} a6 {[%emt 0:00:04]} 6. Bg5 {[%emt 0:00:03]} Nbd7 {[%emt 0:00:13]} 7. f4 {[%emt 0:00:03]} Qc7 {[%emt 0:00:11]} 8. Qf3 {[%emt 0:00:04]} h6 {[%emt 0:00:20]} 9. Bxf6 {[%emt 0:00:04]} Nxf6 {[%emt 0:00:03]} 10. f5 {[%emt 0:00:03]} Qc5 {[%emt 0:00:31]} 11. Nb3 {[%emt 0:00:05]} Qe5 {[%emt 0:00:28]} 12. Nd2 {[%emt 0:00:03]} b5 {[%emt 0:00:49]} 13. a4 {[%emt 0:00:26]} b4 {[%emt 0:03:00]} 14. Nc4 {[%emt 0:00:03]} Qc5 {[%emt 0:00:58]} 15. Nd5 {[%emt 0:00:33]} Nxd5 {[%emt 0:00:40]} 16. exd5 {[%emt 0:00:02]} Bb7 {[%emt 0:00:22]} 17. O-O-O {[%emt 0:00:20]} Rc8 {[%emt 0:00:22]} 18. Be2 {[%emt 0:00:48]} Rc7 {[%emt 0:01:03]} 19. Qe4 {[%emt 0:00:24]} Kd8 {[%emt 0:00:25]} 20. b3 {[%emt 0:01:14]} e6 {[%emt 0:01:46]} 21. fxe6 {[%emt 0:00:04]} fxe6 {[%emt 0:00:00]} 22. Qxe6 {[%emt 0:00:26]} Re7 {[%emt 0:01:32]} 23. Nxd6 {[%emt 0:00:42]} Rxe6 {[%emt 0:00:59]} 24. Nxb7+ Kc7 25. Nxc5 {[%emt 0:00:08]} Rxe2 {[%emt 0:00:01]} 26. Ne6+ {[%emt 0:00:05]} Kd6 {[%emt 0:00:06]} 27. Rhf1 {[%emt 0:00:40]} Be7 {[%emt 0:00:13]} 28. Nxg7 {[%emt 0:00:12]} Bg5+ {[%emt 0:00:10]} 29. Kb1 {[%emt 0:00:02]} Rc8 {[%emt 0:00:13]} 30. Nf5+ {[%emt 0:00:05]} Ke5 {[%emt 0:00:15]} 31. Nd4 {[%emt 0:00:07]} Rxg2 {[%emt 0:00:20]} 32. Nc6+ {[%emt 0:00:11]} Kd6 {[%emt 0:00:10]} 33. Nxb4 {[%emt 0:00:22]} Rxh2 {[%emt 0:00:08]} 34. Rfe1 {[%emt 0:00:33]} a5 {[%emt 0:00:52]} 35. Re6+ {[%emt 0:00:07]} Kd7 {[%emt 0:00:02]} 36. Nc6 {[%emt 0:00:08]} Rf2 {[%emt 0:00:27]} 37. Rg6 {[%emt 0:01:08]} Rh2 {[%emt 0:00:28]} 38. Ne5+ {[%emt 0:00:14]} Ke7 {[%emt 0:00:13]} 39. d6+ {[%emt 0:00:10]} 1-0

[Event "Cellavision Cup 2018"]
[Site "Lund"]
[Date "2018.08.03"]
[Round "1"]
[White "Cramling, Pia"]
[Black "Sjodahl, Olof"]
[Result "1-0"]
[ECO "A38"]
[WhiteElo "2453"]
[BlackElo "1928"]
[Annotator "ChessBase"]
[PlyCount "83"]
[EventDate "2018.08.03"]
[EventType "swiss"]
[EventCountry "SWE"]
[SourceTitle "playchess.com"]
[Source "ChessBase"]
[SourceQuality "1"]
[TimeControl "900+5"]

1. Nf3 {[%emt 0:00:15]} Nf6 {[%emt 0:00:04]} 2. c4 {[%emt 0:00:02]} c5 {[%emt 0:00:11]} 3. Nc3 {[%emt 0:00:02]} Nc6 {[%emt 0:00:08]} 4. g3 {[%emt 0:00:06]} g6 {[%emt 0:00:20]} 5. Bg2 {[%emt 0:00:03]} Bg7 {[%emt 0:00:02]} 6. d4 {[%emt 0:00:04]} cxd4 {[%emt 0:00:18]} 7. Nxd4 {[%emt 0:00:02]} O-O {[%emt 0:00:41]} 8. O-O {[%emt 0:00:02]} Ne8 {[%emt 0:02:05]} 9. e3 {[%emt 0:00:32]} Nxd4 {[%emt 0:01:45]} 10. exd4 {[%emt 0:00:02]} d6 {[%emt 0:00:45]} 11. Bg5 {[%emt 0:01:01]} h6 {[%emt 0:01:17]} 12. Be3 {[%emt 0:00:01]} Nc7 {[%emt 0:00:43]} 13. Qd2 {[%emt 0:00:21]} Kh7 {[%emt 0:00:14]} 14. Rad1 {[%emt 0:00:56]} Rb8 {[%emt 0:01:07]} 15. d5 {[%emt 0:00:53]} a6 {[%emt 0:00:23]} 16. Bb6 {[%emt 0:00:35]} Qd7 {[%emt 0:00:10]} 17. Rfe1 {[%emt 0:00:29]} Na8 {[%emt 0:00:54]} 18. Ba7 {[%emt 0:00:05]} Qc7 {[%emt 0:00:40]} 19. Bxb8 {[%emt 0:00:10]} Qxb8 {[%emt 0:00:01]} 20. Rxe7 {[%emt 0:00:12]} b5 {[%emt 0:00:24]} 21. cxb5 {[%emt 0:00:30]} axb5 {[%emt 0:00:05]} 22. Rde1 {[%emt 0:00:34]} b4 {[%emt 0:00:27]} 23. Nd1 {[%emt 0:00:45]} Nc7 {[%emt 0:00:59]} 24. Qf4 {[%emt 0:00:34]} Bf5 {[%emt 0:00:46]} 25. Qxd6 {[%emt 0:00:34]} Nb5 {[%emt 0:00:30]} 26. Qxb8 {[%emt 0:00:06]} Rxb8 {[%emt 0:00:02]} 27. Rxf7 {[%emt 0:00:32]} Nd6 {[%emt 0:00:06]} 28. Rfe7 {[%emt 0:00:23]} Kg8 {[%emt 0:00:12]} 29. h3 {[%emt 0:00:31]} Bf6 {[%emt 0:00:15]} 30. Ra7 {[%emt 0:00:27]} Bd4 {[%emt 0:00:23]} 31. Ra6 {[%emt 0:00:14]} Nc4 {[%emt 0:00:20]} 32. d6 {[%emt 0:00:33]} Rd8 {[%emt 0:00:02]} 33. Bd5+ {[%emt 0:00:02]} Kg7 {[%emt 0:00:08]} 34. Bxc4 {[%emt 0:00:06]} h5 {[%emt 0:00:05]} 35. Be6 {[%emt 0:01:01]} Bd3 {[%emt 0:00:13]} 36. Rc6 {[%emt 0:00:09]} g5 {[%emt 0:00:28]} 37. d7 {[%emt 0:00:10]} h4 {[%emt 0:00:05]} 38. gxh4 {[%emt 0:00:02]} gxh4 {[%emt 0:00:04]} 39. Rc8 {[%emt 0:00:04]} Bb6 {[%emt 0:00:08]} 40. Ne3 {[%emt 0:00:11]} Kf8 {[%emt 0:00:14]} 41. Nd5 {[%emt 0:00:06]} Ba5 {[%emt 0:00:04]} 42. Re3 {[%emt 0:00:03]} 1-0

[Event "Cellavision Cup 2018"]
[Site "Lund"]
[Date "2018.08.03"]
[Round "1"]
[White "Joensson, Jacob"]
[Black "Urkedal, Frode Olav Olsen"]
[Result "0-1"]
[ECO "E43"]
[WhiteElo "1976"]
[BlackElo "2537"]
[Annotator "ChessBase"]
[PlyCount "70"]
[EventDate "2018.08.03"]
[EventType "swiss"]
[EventCountry "SWE"]
[SourceTitle "playchess.com"]
[Source "ChessBase"]
[SourceQuality "1"]
[TimeControl "900+5"]

1. d4 {[%emt 0:00:00]} Nf6 {[%emt 0:00:00]} 2. c4 {[%emt 0:00:00]} e6 {[%emt 0:00:00]} 3. Nc3 {[%emt 0:00:00]} Bb4 {[%emt 0:00:00]} 4. e3 {[%emt 0:00:01]} b6 {[%emt 0:00:16]} 5. Bd3 {[%emt 0:00:03]} Bb7 {[%emt 0:00:01]} 6. Nf3 {[%emt 0:00:01]} O-O {[%emt 0:00:06]} 7. O-O {[%emt 0:00:07]} d5 {[%emt 0:00:02]} 8. Qe2 {[%emt 0:00:35]} Nbd7 {[%emt 0:00:12]} 9. Bd2 {[%emt 0:01:09]} c5 {[%emt 0:00:12]} 10. a3 {[%emt 0:01:19]} Bxc3 {[%emt 0:00:03]} 11. Bxc3 {[%emt 0:00:03]} dxc4 {[%emt 0:00:11]} 12. Bxc4 {[%emt 0:00:03]} Qc7 {[%emt 0:00:13]} 13. Rac1 {[%emt 0:01:42]} Ne4 {[%emt 0:01:05]} 14. Ba6 {[%emt 0:01:00]} Bxa6 {[%emt 0:00:41]} 15. Qxa6 {[%emt 0:00:03]} Rac8 {[%emt 0:00:16]} 16. Qd3 {[%emt 0:03:51]} Qb7 {[%emt 0:00:05]} 17. Rfd1 {[%emt 0:00:49]} c4 {[%emt 0:00:10]} 18. Qe2 {[%emt 0:01:02]} b5 {[%emt 0:00:15]} 19. Bb4 {[%emt 0:00:24]} Rfe8 {[%emt 0:00:06]} 20. Nd2 {[%emt 0:00:48]} f5 {[%emt 0:00:37]} 21. f3 {[%emt 0:00:25]} Nxd2 {[%emt 0:00:09]} 22. Qxd2 {[%emt 0:00:04]} Nf6 {[%emt 0:00:16]} 23. Bd6 {[%emt 0:00:39]} Qd5 {[%emt 0:00:02]} 24. Be5 {[%emt 0:00:03]} Nd7 {[%emt 0:00:08]} 25. Bf4 {[%emt 0:00:50]} h6 {[%emt 0:00:05]} 26. Qa5 {[%emt 0:00:25]} Qb7 {[%emt 0:00:01]} 27. a4 {[%emt 0:00:09]} b4 {[%emt 0:00:42]} 28. d5 {[%emt 0:00:23]} Rc5 {[%emt 0:00:07]} 29. Qxc5 {[%emt 0:00:35]} Nxc5 {[%emt 0:00:02]} 30. Rxc4 {[%emt 0:00:04]} e5 {[%emt 0:00:17]} 31. Bg3 {[%emt 0:00:09]} Nxa4 {[%emt 0:00:07]} 32. Rd2 {[%emt 0:00:20]} Rc8 {[%emt 0:00:22]} 33. Rxc8+ {[%emt 0:00:15]} Qxc8 {[%emt 0:00:02]} 34. Kf2 {[%emt 0:00:08]} Qc1 {[%emt 0:00:01]} 35. Re2 {[%emt 0:00:02]} Nxb2 {[%emt 0:00:02]} 0-1

[Event "Cellavision Cup 2018"]
[Site "Lund"]
[Date "2018.08.03"]
[Round "2"]
[White "Shirov, Alexei"]
[Black "Lindgren, Mats"]
[Result "1-0"]
[ECO "C19"]
[WhiteElo "2631"]
[BlackElo "2170"]
[Annotator "ChessBase"]
[PlyCount "56"]
[EventDate "2018.08.03"]
[EventType "swiss"]
[EventCountry "SWE"]
[SourceTitle "playchess.com"]
[Source "ChessBase"]
[SourceQuality "1"]
[TimeControl "900+5"]

1. d4 {[%emt 0:00:00]} e6 {[%emt 0:00:00]} 2. e4 {[%emt 0:00:03]} d5 {[%emt 0:00:00]} 3. Nc3 {[%emt 0:00:04]} Bb4 {[%emt 0:00:00]} 4. e5 {[%emt 0:00:02]} c5 {[%emt 0:00:03]} 5. a3 {[%emt 0:00:02]} Bxc3+ {[%emt 0:00:03]} 6. bxc3 {[%emt 0:00:02]} Ne7 {[%emt 0:00:03]} 7. Nf3 {[%emt 0:00:06]} Bd7 {[%emt 0:00:07]} 8. h4 {[%emt 0:02:02]} Qa5 {[%emt 0:00:50]} 9. Bd2 {[%emt 0:00:11]} Nbc6 {[%emt 0:00:29]} 10. h5 {[%emt 0:00:27]} h6 {[%emt 0:00:03]} 11. a4 {[%emt 0:02:23]} f6 {[%emt 0:01:50]} 12. exf6 {[%emt 0:00:59]} gxf6 {[%emt 0:00:02]} 13. Bb5 {[%emt 0:00:04]} O-O-O {[%emt 0:01:00]} 14. O-O {[%emt 0:00:17]} Qc7 {[%emt 0:00:36]} 15. dxc5 {[%emt 0:00:56]} e5 {[%emt 0:00:23]} 16. Nh4 {[%emt 0:00:02]} Rdg8 {[%emt 0:01:04]} 17. Qf3 {[%emt 0:00:33]} f5 {[%emt 0:03:32]} 18. Rfe1 {[%emt 0:03:37]} e4 {[%emt 0:00:03]} 19. Qf4 {[%emt 0:00:07]} Rg4 {[%emt 0:02:25]} 20. Qxc7+ {[%emt 0:00:04]} Kxc7 {[%emt 0:00:02]} 21. g3 {[%emt 0:00:03]} Rhg8 {[%emt 0:00:59]} 22. Kh2 {[%emt 0:01:03]} Ne5 {[%emt 0:00:56]} 23. Be2 {[%emt 0:00:03]} f4 {[%emt 0:01:25]} 24. Bxf4 {[%emt 0:00:18]} Rxf4 {[%emt 0:00:05]} 25. gxf4 {[%emt 0:00:02]} Ng4+ {[%emt 0:00:01]} 26. Bxg4 {[%emt 0:00:06]} Rxg4 {[%emt 0:00:02]} 27. Ng2 {[%emt 0:00:06]} Nf5 {[%emt 0:01:06]} 28. Ne3 {[%emt 0:00:45]} Rxf4 1-0

[Event "Cellavision Cup 2018"]
[Site "Lund"]
[Date "2018.08.03"]
[Round "2"]
[White "Sumets, Andrey"]
[Black "Subramanian, Aditya"]
[Result "1-0"]
[ECO "C80"]
[WhiteElo "2575"]
[BlackElo "2151"]
[Annotator "ChessBase"]
[PlyCount "57"]
[EventDate "2018.08.03"]
[EventType "swiss"]
[EventCountry "SWE"]
[SourceTitle "playchess.com"]
[Source "ChessBase"]
[SourceQuality "1"]
[TimeControl "900+5"]

1. e4 {[%emt 0:00:00]} e5 {[%emt 0:00:00]} 2. Nf3 {[%emt 0:00:00]} Nc6 {[%emt 0:00:00]} 3. Bb5 {[%emt 0:00:06]} a6 {[%emt 0:00:01]} 4. Ba4 {[%emt 0:00:01]} Nf6 {[%emt 0:00:01]} 5. O-O {[%emt 0:00:02]} Nxe4 {[%emt 0:00:02]} 6. d4 {[%emt 0:00:01]} b5 {[%emt 0:00:02]} 7. Bb3 {[%emt 0:00:02]} d5 {[%emt 0:00:01]} 8. dxe5 {[%emt 0:00:06]} Be6 {[%emt 0:00:02]} 9. Nbd2 {[%emt 0:00:47]} Be7 {[%emt 0:00:03]} 10. c3 {[%emt 0:00:55]} O-O {[%emt 0:00:20]} 11. Nxe4 {[%emt 0:00:34]} dxe4 {[%emt 0:00:03]} 12. Bxe6 {[%emt 0:00:07]} Qxd1 {[%emt 0:00:44]} 13. Rxd1 {[%emt 0:00:07]} fxe6 {[%emt 0:00:18]} 14. Nd4 {[%emt 0:00:33]} Nxe5 {[%emt 0:01:45]} 15. Nxe6 {[%emt 0:00:15]} Rf7 {[%emt 0:00:32]} 16. Nxc7 {[%emt 0:01:04]} Rc8 {[%emt 0:01:27]} 17. Nxa6 {[%emt 0:00:53]} Nd3 {[%emt 0:02:31]} 18. Be3 {[%emt 0:00:46]} Rf6 {[%emt 0:01:38]} 19. Nb4 {[%emt 0:01:18]} Bxb4 {[%emt 0:00:03]} 20. cxb4 {[%emt 0:00:01]} Rc2 {[%emt 0:00:02]} 21. a4 {[%emt 0:02:18]} bxa4 {[%emt 0:00:38]} 22. Rxa4 {[%emt 0:00:07]} Nxf2 {[%emt 0:00:11]} 23. Rd8+ {[%emt 0:01:25]} Kf7 {[%emt 0:00:01]} 24. Ra7+ {[%emt 0:00:44]} Kg6 {[%emt 0:01:09]} 25. Rdd7 {[%emt 0:00:44]} Kf5 {[%emt 0:02:19]} 26. Rxg7 {[%emt 0:01:04]} Nd1 {[%emt 0:00:02]} 27. Ra5+ {[%emt 0:00:43]} Ke6 {[%emt 0:00:07]} 28. Ra6+ {[%emt 0:00:02]} Kf5 {[%emt 0:00:08]} 29. Rg5# 1-0

[Event "Cellavision Cup 2018"]
[Site "Lund"]
[Date "2018.08.03"]
[Round "2"]
[White "Urkedal, Frode Olav Olsen"]
[Black "Persson, Richard"]
[Result "1-0"]
[ECO "D31"]
[WhiteElo "2537"]
[BlackElo "2146"]
[Annotator "ChessBase"]
[PlyCount "84"]
[EventDate "2018.08.03"]
[EventType "swiss"]
[EventCountry "SWE"]
[SourceTitle "playchess.com"]
[Source "ChessBase"]
[SourceQuality "1"]
[TimeControl "900+5"]

1. d4 {[%emt 0:00:00]} d5 {[%emt 0:00:00]} 2. c4 {[%emt 0:00:00]} e6 {[%emt 0:00:03]} 3. Nc3 {[%emt 0:00:00]} c6 {[%emt 0:00:07]} 4. e4 {[%emt 0:00:05]} dxe4 {[%emt 0:00:06]} 5. Nxe4 {[%emt 0:00:02]} Nf6 {[%emt 0:00:02]} 6. Nxf6+ {[%emt 0:00:04]} Qxf6 {[%emt 0:00:03]} 7. Nf3 {[%emt 0:00:02]} Bb4+ {[%emt 0:00:01]} 8. Bd2 {[%emt 0:00:01]} Bxd2+ {[%emt 0:00:02]} 9. Qxd2 {[%emt 0:00:02]} Nd7 {[%emt 0:00:02]} 10. Be2 {[%emt 0:00:13]} O-O {[%emt 0:00:04]} 11. O-O {[%emt 0:00:53]} e5 {[%emt 0:00:06]} 12. Rfd1 {[%emt 0:01:04]} exd4 {[%emt 0:01:42]} 13. Nxd4 {[%emt 0:00:03]} Re8 {[%emt 0:03:16]} 14. b4 {[%emt 0:00:55]} Ne5 {[%emt 0:01:00]} 15. h3 {[%emt 0:03:28]} Bd7 {[%emt 0:01:34]} 16. Nb3 {[%emt 0:00:48]} Rad8 {[%emt 0:00:23]} 17. Qc3 {[%emt 0:00:41]} Ng4 {[%emt 0:01:14]} 18. Qxf6 {[%emt 0:00:08]} Nxf6 {[%emt 0:00:01]} 19. Bf3 {[%emt 0:00:06]} Be6 {[%emt 0:01:20]} 20. Na5 {[%emt 0:00:39]} Rxd1+ {[%emt 0:01:11]} 21. Rxd1 {[%emt 0:00:02]} b6 {[%emt 0:00:02]} 22. Nxc6 {[%emt 0:00:09]} Bxc4 {[%emt 0:00:03]} 23. a3 {[%emt 0:01:10]} a6 {[%emt 0:00:08]} 24. g4 {[%emt 0:00:46]} h6 {[%emt 0:00:26]} 25. Rd4 {[%emt 0:00:02]} Bb5 {[%emt 0:01:04]} 26. h4 {[%emt 0:00:25]} Bxc6 {[%emt 0:00:17]} 27. Bxc6 {[%emt 0:00:03]} Re1+ {[%emt 0:00:23]} 28. Kg2 {[%emt 0:00:01]} g5 {[%emt 0:00:15]} 29. hxg5 {[%emt 0:00:12]} hxg5 {[%emt 0:00:01]} 30. Bf3 {[%emt 0:00:54]} Ra1 {[%emt 0:00:48]} 31. Rd6 {[%emt 0:01:04]} Kg7 {[%emt 0:00:01]} 32. Rxb6 {[%emt 0:00:05]} Rxa3 {[%emt 0:00:01]} 33. Bb7 {[%emt 0:00:02]} a5 {[%emt 0:00:11]} 34. b5 {[%emt 0:00:52]} Nxg4 {[%emt 0:00:15]} 35. Bc8 {[%emt 0:00:02]} Nf6 {[%emt 0:00:24]} 36. Ra6 {[%emt 0:00:04]} Ra2 {[%emt 0:00:18]} 37. b6 {[%emt 0:00:04]} Ne4 {[%emt 0:00:22]} 38. b7 {[%emt 0:00:01]} Rxf2+ {[%emt 0:00:11]} 39. Kg1 {[%emt 0:00:02]} Rb2 {[%emt 0:00:02]} 40. Ra8 {[%emt 0:00:01]} f5 {[%emt 0:00:44]} 41. b8=Q {[%emt 0:00:09]} Rxb8 {[%emt 0:00:03]} 42. Rxb8 {[%emt 0:00:02]} f4 {[%emt 0:00:03]} 1-0

[Event "Cellavision Cup 2018"]
[Site "Lund"]
[Date "2018.08.03"]
[Round "2"]
[White "Maiorov, Nikita"]
[Black "Carlsson, Ludvig"]
[Result "1-0"]
[ECO "A56"]
[WhiteElo "2504"]
[BlackElo "2118"]
[Annotator "ChessBase"]
[PlyCount "55"]
[EventDate "2018.08.03"]
[EventType "swiss"]
[EventCountry "SWE"]
[SourceTitle "playchess.com"]
[Source "ChessBase"]
[SourceQuality "1"]
[TimeControl "900+5"]

1. d4 {[%emt 0:00:00]} Nf6 {[%emt 0:00:00]} 2. c4 {[%emt 0:00:00]} c5 {[%emt 0:00:01]} 3. d5 {[%emt 0:00:01]} g6 {[%emt 0:00:02]} 4. Nc3 {[%emt 0:00:01]} Bg7 {[%emt 0:00:02]} 5. g3 {[%emt 0:00:00]} O-O {[%emt 0:00:10]} 6. Bg2 {[%emt 0:00:02]} d6 {[%emt 0:00:03]} 7. Nf3 {[%emt 0:00:02]} e6 {[%emt 0:00:16]} 8. O-O {[%emt 0:00:03]} Na6 {[%emt 0:00:47]} 9. dxe6 {[%emt 0:00:26]} fxe6 {[%emt 0:00:14]} 10. Bg5 {[%emt 0:02:53]} Qb6 {[%emt 0:01:18]} 11. Qd2 {[%emt 0:00:17]} Qb4 {[%emt 0:01:21]} 12. Rac1 {[%emt 0:01:34]} Qxc4 {[%emt 0:02:38]} 13. b3 {[%emt 0:01:53]} Qg4 {[%emt 0:00:51]} 14. Qxd6 {[%emt 0:00:46]} Ne8 {[%emt 0:00:48]} 15. Qd2 {[%emt 0:00:05]} e5 {[%emt 0:00:32]} 16. Be3 {[%emt 0:00:58]} Rb8 {[%emt 0:00:37]} 17. Ng5 {[%emt 0:00:08]} Kh8 {[%emt 0:00:47]} 18. Nce4 {[%emt 0:02:36]} b6 {[%emt 0:01:18]} 19. Bh3 {[%emt 0:00:24]} Qh5 {[%emt 0:00:09]} 20. Bxc8 {[%emt 0:00:02]} Rxc8 {[%emt 0:00:07]} 21. f3 {[%emt 0:00:14]} Nf6 {[%emt 0:00:32]} 22. Nxf6 {[%emt 0:00:46]} Bxf6 {[%emt 0:00:04]} 23. Ne4 {[%emt 0:00:07]} Rfd8 {[%emt 0:00:23]} 24. Qb2 {[%emt 0:00:02]} Qf5 {[%emt 0:00:12]} 25. Rcd1 {[%emt 0:00:12]} Qe6 {[%emt 0:01:22]} 26. Qa3 {[%emt 0:00:24]} b5 {[%emt 0:00:48]} 27. Qa5 {[%emt 0:00:03]} Nb4 {[%emt 0:01:39]} 28. Nxc5 {[%emt 0:00:20]} 1-0

[Event "Cellavision Cup 2018"]
[Site "Lund"]
[Date "2018.08.03"]
[Round "2"]
[White "Himanshu, Sharma"]
[Black "Harren, Mats"]
[Result "0-1"]
[ECO "C68"]
[WhiteElo "2436"]
[BlackElo "2098"]
[Annotator "NA RC"]
[PlyCount "129"]
[EventDate "2018.08.03"]
[EventType "swiss"]
[EventCountry "SWE"]
[SourceTitle "playchess.com"]
[Source "ChessBase"]
[SourceQuality "1"]
[TimeControl "900+5"]

1. e4 {[%emt 0:00:00]} e5 {[%emt 0:00:00]} 2. Nf3 {[%emt 0:00:00]} Nc6 {[%emt 0:00:00]} 3. Bb5 {[%emt 0:00:01]} a6 {[%emt 0:00:01]} 4. Bxc6 {[%emt 0:00:03]} dxc6 {[%emt 0:00:05]} 5. O-O {[%emt 0:00:02]} Bg4 {[%emt 0:00:21]} 6. h3 {[%emt 0:00:02]} h5 {[%emt 0:00:02]} 7. d3 {[%emt 0:00:01]} Qf6 {[%emt 0:00:16]} 8. Be3 {[%emt 0:00:01]} Bxf3 {[%emt 0:00:56]} 9. Qxf3 {[%emt 0:00:02]} Qxf3 {[%emt 0:00:06]} 10. gxf3 {[%emt 0:00:02]} f6 {[%emt 0:00:11]} 11. f4 {[%emt 0:00:02]} exf4 {[%emt 0:00:07]} 12. Bxf4 {[%emt 0:00:02]} Bd6 {[%emt 0:00:09]} 13. Be3 {[%emt 0:00:11]} Ne7 {[%emt 0:00:38]} 14. f4 {[%emt 0:00:16]} c5 {[%emt 0:00:40]} 15. Nd2 {[%emt 0:00:06]} Nc6 {[%emt 0:01:17]} 16. Kf2 {[%emt 0:00:23]} Kf7 {[%emt 0:00:36]} 17. Ke2 {[%emt 0:01:02]} Be7 {[%emt 0:01:27]} 18. f5 {[%emt 0:00:04]} Rhg8 {[%emt 0:00:23]} 19. Nf3 {[%emt 0:00:13]} Bd6 {[%emt 0:00:23]} 20. Nh4 {[%emt 0:00:25]} Rae8 {[%emt 0:00:46]} 21. Ng6 {[%emt 0:00:18]} c4 {[%emt 0:00:44]} 22. a3 {[%emt 0:01:04]} cxd3+ {[%emt 0:00:18]} 23. cxd3 {[%emt 0:00:01]} Rd8 {[%emt 0:00:17]} 24. d4 {[%emt 0:00:42]} Rge8 {[%emt 0:00:38]} 25. Kf3 {[%emt 0:00:08]} Na5 {[%emt 0:00:56]} 26. Rac1 {[%emt 0:00:14]} b5 {[%emt 0:00:32]} 27. d5 {[%emt 0:02:56]} Nc4 {[%emt 0:01:09]} 28. b3 {[%emt 0:00:35]} Nxa3 {[%emt 0:01:17]} 29. Bf4 {[%emt 0:00:12]} Bxf4 {[%emt 0:01:10]} 30. Nxf4 {[%emt 0:00:13]} Rd7 {[%emt 0:00:20]} 31. Rc6 {[%emt 0:00:23]} b4 {[%emt 0:00:14]} 32. Rxa6 {[%emt 0:00:11]} Nb5 {[%emt 0:00:03]} 33. Ne6 {[%emt 0:00:49]} Rd6 {[%emt 0:00:34]} 34. Nxc7 {[%emt 0:00:44]} Rxa6 {[%emt 0:00:27]} 35. Nxa6 {[%emt 0:00:03]} Nd4+ {[%emt 0:00:11]} 36. Kf4 {[%emt 0:00:44]} Nxb3 {[%emt 0:00:02]} 37. Rd1 {[%emt 0:00:17]} Na5 {[%emt 0:00:18]} 38. Nxb4 {[%emt 0:00:11]} Nc4 {[%emt 0:00:06]} 39. Rd4 {[%emt 0:02:43]} Nd6 {[%emt 0:00:18]} 40. Nd3 {[%emt 0:00:09]} g5+ {[%emt 0:00:07]} 41. fxg6+ {[%emt 0:00:37]} Kxg6 {[%emt 0:00:01]} 42. Ra4 {[%emt 0:00:07]} Re7 {[%emt 0:00:06]} 43. Nc5 {[%emt 0:00:08]} Nf7 {[%emt 0:00:08]} 44. Ra6 {[%emt 0:00:20]} Rc7 {[%emt 0:00:09]} 45. Rc6 {[%emt 0:00:11]} Ra7 {[%emt 0:00:04]} 46. h4 {[%emt 0:00:27]} Ne5 {[%emt 0:00:06]} 47. Nb3 {[%emt 0:01:03]} Ra3 {[%emt 0:00:07]} 48. Rc3 {[%emt 0:00:02]} Ra4 {[%emt 0:00:02]} 49. Nd2 {[%emt 0:00:17]} Rd4 {[%emt 0:00:08]} 50. Nf3 {[%emt 0:00:07]} Nxf3 {[%emt 0:00:03]} 51. Kxf3 {[%emt 0:00:01]} f5 {[%emt 0:00:02]} 52. Rc6+ {[%emt 0:00:05]} Kf7 {[%emt 0:00:03]} 53. exf5 {[%emt 0:00:03]} Rxd5 {[%emt 0:00:01]} 54. Kf4 {[%emt 0:00:04]} Kg7 {[%emt 0:00:03]} 55. Kg5 {[%emt 0:00:02]} Rd2 {[%emt 0:00:01]} 56. Rc7+ {[%emt 0:00:02]} Kg8 {[%emt 0:00:02]} 57. Kxh5 {[%emt 0:00:14]} Rg2 {[%emt 0:00:02]} 58. Kh6 {[%emt 0:00:04]} Rg4 {[%emt 0:00:02]} 59. h5 {[%emt 0:00:02]} Rg2 {[%emt 0:00:03]} 60. f6 {[%emt 0:00:09]} Rf2 {[%emt 0:00:01]} 61. Rg7+ {[%emt 0:00:03]} Kh8 {[%emt 0:00:02]} 62. Rg6 {[%emt 0:00:03]} Rg2 {[%emt 0:00:03]} 63. Rg5 {[%emt 0:00:17]} Rg1 {[%emt 0:00:01]} 64. Kg6 {[%emt 0:00:04]} Rf1 {[%emt 0:00:02]} 65. f7 0-1